[Event "Live Chess"]
[Site "Chess.com"]
[Date "2021.02.28"]
[Round "-"]
[White "McEvoy Gould, Kit"]
[Black "Craigmile, Neil"]
[Result "1-0"]
[BlackElo "995"]
[CurrentPosition "8/1pN1b3/p2p2kp/3P4/2P5/6PR/PP4KP/8 b - -"]
[ECO "C55"]
[ECOUrl "https://www.chess.com/openings/Italian-Game-Anti-Fried-Liver-Defense"]
[EndDate "2021.02.28"]
[EndTime "11:25:48"]
[Link "https://www.chess.com/live/game/8249078429"]
[StartTime "11:03:45"]
[Termination "KLM742 won by resignation"]
[TimeControl "1500+10"]
[Timezone "UTC"]
[UTCDate "2021.02.28"]
[UTCTime "11:03:45"]
[WhiteElo "1162"]

1. e4 { [%clk 0:25:10] } 1... e5 { [%clk 0:25:10] } 2. Nf3 { [%clk 0:25:06] } 2... Nc6 { [%clk 0:25:15.6] } 3. Bc4 { [%clk 0:25:09.4] } 3... h6 { [%clk 0:25:17.1] } 4. O-O { [%clk 0:25:12.3] } 4... d6 { [%clk 0:25:19.8] } 5. c3 { [%clk 0:25:08.7] } 5... Be6 { [%clk 0:25:09.5] } 6. Bxe6 { [%clk 0:25:14.2] } 6... fxe6 { [%clk 0:25:17.1] } 7. d3 { [%clk 0:25:17.2] } 7... Nf6 { [%clk 0:25:21.6] } 8. Re1 { [%clk 0:25:17.5] } 8... Be7 { [%clk 0:25:29.1] } 9. Be3 { [%clk 0:25:22.2] } 9... O-O { [%clk 0:24:33] } 10. Nbd2 { [%clk 0:25:24.1] } 10... Nh7 { [%clk 0:24:25.3] } 11. d4 { [%clk 0:25:08.9] } 11... Bf6 { [%clk 0:24:18.9] } 12. d5 { [%clk 0:24:53.6] } 12... exd5 { [%clk 0:24:18.6] } 13. exd5 { [%clk 0:25:03.5] } 13... Ne7 { [%clk 0:24:19.1] } 14. c4 { [%clk 0:25:00.6] } 14... Nf5 { [%clk 0:23:23.7] } 15. Ne4 { [%clk 0:24:31.9] } 15... Nxe3 { [%clk 0:22:55.6] } 16. Rxe3 { [%clk 0:24:41.8] } 16... Ng5 { [%clk 0:22:44.8] } 17. Nfxg5 { [%clk 0:23:44.6] } 17... Bxg5 { [%clk 0:22:45.9] } 18. Rg3 { [%clk 0:23:49.5] } 18... Bh4 { [%clk 0:21:52.9] } 19. Rh3 { [%clk 0:23:29.9] } 19... Rf4 { [%clk 0:21:24.9] } 20. Qd3 { [%clk 0:22:28.1] } 20... Qf8 { [%clk 0:21:06.6] } 21. g3 { [%clk 0:22:20.1] } 21... Rf3 { [%clk 0:20:28.9] } 22. Qe2 { [%clk 0:21:57.1] } 22... Be7 { [%clk 0:19:30.3] } 23. Kg2 { [%clk 0:21:39.9] } 23... Qf5 { [%clk 0:18:43.4] } 24. Qxf3 { [%clk 0:21:25.9] } 24... Qxf3+ { [%clk 0:18:41.6] } 25. Kxf3 { [%clk 0:21:31.1] } 25... Rf8+ { [%clk 0:18:48.7] } 26. Kg2 { [%clk 0:21:04.6] } 26... a6 { [%clk 0:18:31.2] } 27. Rf1 { [%clk 0:20:45.5] } 27... Kh7 { [%clk 0:18:30.9] } 28. f4 { [%clk 0:20:53.6] } 28... exf4 { [%clk 0:18:31.8] } 29. Rxf4 { [%clk 0:20:58.2] } 29... g5 { [%clk 0:18:25.3] } 30. Rxf8 { [%clk 0:20:35.7] } 30... Bxf8 { [%clk 0:18:31] } 31. Nxg5+ { [%clk 0:20:34.7] } 31... Kg6 { [%clk 0:18:33.8] } 32. Ne6 { [%clk 0:20:36.6] } 32... Be7 { [%clk 0:18:32.9] } 33. Nxc7 { [%clk 0:20:37.2] } 1-0

[Event "Live Chess"]
[Site "Chess.com"]
[Date "2021.02.28"]
[Round "-"]
[White "Kante, Kalyan Sai Nandan"]
[Black "Brown, Gerry"]
[Result "1-0"]
[BlackElo "1471"]
[CurrentPosition "8/1p6/p1p1k3/2N1P1p1/4K3/8/PPP3P1/8 b - -"]
[ECO "A45"]
[ECOUrl "https://www.chess.com/openings/Indian-Game"]
[EndDate "2021.02.28"]
[EndTime "14:12:52"]
[Link "https://www.chess.com/live/game/8259903883"]
[StartTime "14:04:25"]
[Termination "GoodChesswizard999 won by resignation"]
[TimeControl "1500+10"]
[Timezone "UTC"]
[UTCDate "2021.02.28"]
[UTCTime "14:04:25"]
[WhiteElo "1570"]

1. d4 { [%clk 0:25:10] } 1... Nf6 { [%clk 0:25:10] } 2. Bf4 { [%clk 0:25:16.7] } 2... d6 { [%clk 0:25:09.3] } 3. Nc3 { [%clk 0:25:19.6] } 3... g6 { [%clk 0:24:57.4] } 4. e4 { [%clk 0:25:26.8] } 4... Nbd7 { [%clk 0:24:47.1] } 5. Nf3 { [%clk 0:24:38.2] } 5... Bg7 { [%clk 0:24:49] } 6. Qd2 { [%clk 0:24:37.8] } 6... Nh5 { [%clk 0:24:44] } 7. Bh6 { [%clk 0:24:42] } 7... O-O { [%clk 0:24:49.5] } 8. O-O-O { [%clk 0:24:44.3] } 8... e5 { [%clk 0:24:37.6] } 9. Bxg7 { [%clk 0:24:34.8] } 9... Nxg7 { [%clk 0:24:40.9] } 10. dxe5 { [%clk 0:24:42] } 10... dxe5 { [%clk 0:24:46] } 11. Nxe5 { [%clk 0:24:47.1] } 11... Ne6 { [%clk 0:23:33.8] } 12. Nxd7 { [%clk 0:24:45.3] } 12... Bxd7 { [%clk 0:23:27.6] } 13. Qxd7 { [%clk 0:24:51.5] } 13... Qxd7 { [%clk 0:23:32.3] } 14. Rxd7 { [%clk 0:25:00.1] } 14... Rad8 { [%clk 0:23:38.7] } 15. Rxd8 { [%clk 0:25:06.2] } 15... Rxd8 { [%clk 0:23:46.4] } 16. Bc4 { [%clk 0:25:09.7] } 16... c6 { [%clk 0:23:52] } 17. Bxe6 { [%clk 0:25:17.1] } 17... fxe6 { [%clk 0:24:00] } 18. Rd1 { [%clk 0:25:26.4] } 18... Rxd1+ { [%clk 0:24:07.5] } 19. Kxd1 { [%clk 0:25:35.3] } 19... Kf7 { [%clk 0:24:16.2] } 20. Ke2 { [%clk 0:25:44.3] } 20... Ke7 { [%clk 0:24:00.4] } 21. Ke3 { [%clk 0:25:44.1] } 21... e5 { [%clk 0:24:07.1] } 22. f4 { [%clk 0:25:49.3] } 22... exf4+ { [%clk 0:24:13.7] } 23. Kxf4 { [%clk 0:25:58] } 23... Kf6 { [%clk 0:24:22.1] } 24. e5+ { [%clk 0:26:06.2] } 24... Ke6 { [%clk 0:24:30.8] } 25. Ke4 { [%clk 0:26:15.1] } 25... h6 { [%clk 0:24:38] } 26. h4 { [%clk 0:26:23.7] } 26... a6 { [%clk 0:24:46.4] } 27. Na4 { [%clk 0:26:32.3] } 27... g5 { [%clk 0:24:50] } 28. hxg5 { [%clk 0:26:39.6] } 28... hxg5 { [%clk 0:24:58.5] } 29. Nc5+ { [%clk 0:26:49.2] } 1-0

[Event "Live Chess"]
[Site "Chess.com"]
[Date "2021.02.28"]
[Round "-"]
[White "Ramazanov, Vagif"]
[Black "Austin, Andrew"]
[Result "1-0"]
[BlackElo "994"]
[CurrentPosition "8/8/8/K7/P7/1P4k1/6p1/6Q1 b - -"]
[ECO "B01"]
[ECOUrl "https://www.chess.com/openings/Scandinavian-Defense-Mieses-Kotrc-Variation-3.Nc3-Qd8"]
[EndDate "2021.02.28"]
[EndTime "14:32:47"]
[Link "https://www.chess.com/live/game/8259832077"]
[StartTime "13:59:36"]
[Termination "Vagif03 won by resignation"]
[TimeControl "1500"]
[Timezone "UTC"]
[UTCDate "2021.02.28"]
[UTCTime "13:59:36"]
[WhiteElo "1404"]

1. e4 { [%clk 0:25:00] } 1... d5 { [%clk 0:25:00] } 2. exd5 { [%clk 0:24:02.3] } 2... Qxd5 { [%clk 0:24:56] } 3. Nc3 { [%clk 0:23:59.2] } 3... Qd8 { [%clk 0:24:53] } 4. d4 { [%clk 0:23:54.5] } 4... Nf6 { [%clk 0:24:42.8] } 5. Nf3 { [%clk 0:23:51] } 5... Bg4 { [%clk 0:24:25.6] } 6. Be2 { [%clk 0:23:48.3] } 6... e6 { [%clk 0:23:20.2] } 7. O-O { [%clk 0:23:41.8] } 7... Bd6 { [%clk 0:22:18.2] } 8. Bg5 { [%clk 0:23:31.8] } 8... Rf8 { [%clk 0:21:37] } 9. Ne4 { [%clk 0:23:12.1] } 9... Be7 { [%clk 0:21:09.6] } 10. Bxf6 { [%clk 0:22:40.9] } 10... Bxf6 { [%clk 0:21:03.4] } 11. Nxf6+ { [%clk 0:22:36] } 11... Qxf6 { [%clk 0:20:59.2] } 12. h3 { [%clk 0:22:35.9] } 12... Bxf3 { [%clk 0:19:59.8] } 13. Bxf3 { [%clk 0:22:29.3] } 13... c6 { [%clk 0:19:44.8] } 14. Re1 { [%clk 0:22:18.2] } 14... Nd7 { [%clk 0:17:56.9] } 15. d5 { [%clk 0:22:07.1] } 15... Ne5 { [%clk 0:16:18.1] } 16. dxe6 { [%clk 0:21:42.2] } 16... Nxf3+ { [%clk 0:15:54.6] } 17. Qxf3 { [%clk 0:21:30.9] } 17... Qxf3 { [%clk 0:15:21.7] } 18. gxf3 { [%clk 0:21:24.4] } 18... fxe6 { [%clk 0:13:59.5] } 19. Rxe6+ { [%clk 0:21:24.3] } 19... Kd7 { [%clk 0:13:32.1] } 20. Rae1 { [%clk 0:21:06.8] } 20... Rae8 { [%clk 0:13:02] } 21. Rxe8 { [%clk 0:20:57.5] } 21... Rxe8 { [%clk 0:12:51.9] } 22. Rxe8 { [%clk 0:20:52.3] } 22... Kxe8 { [%clk 0:12:48.7] } 23. Kg2 { [%clk 0:20:51.8] } 23... Kf7 { [%clk 0:12:27.2] } 24. Kg3 { [%clk 0:20:46.9] } 24... Kf6 { [%clk 0:12:19.6] } 25. Kf4 { [%clk 0:20:39.8] } 25... Ke6 { [%clk 0:11:54.9] } 26. Ke4 { [%clk 0:20:27.8] } 26... c5 { [%clk 0:11:27.9] } 27. c4 { [%clk 0:19:43.4] } 27... Kd6 { [%clk 0:10:06.8] } 28. Kf5 { [%clk 0:19:17.5] } 28... a6 { [%clk 0:09:51] } 29. a4 { [%clk 0:18:26.7] } 29... Kc6 { [%clk 0:09:12.8] } 30. b3 { [%clk 0:17:56] } 30... Kd6 { [%clk 0:08:20.4] } 31. f4 { [%clk 0:17:45.7] } 31... Ke7 { [%clk 0:06:54.1] } 32. Ke5 { [%clk 0:17:34.7] } 32... Kd7 { [%clk 0:06:45.2] } 33. f5 { [%clk 0:17:27.9] } 33... Ke7 { [%clk 0:06:38.6] } 34. f4 { [%clk 0:17:25.8] } 34... h6 { [%clk 0:05:22] } 35. Kd5 { [%clk 0:16:33.2] } 35... Kf6 { [%clk 0:03:12.2] } 36. Kxc5 { [%clk 0:16:26.2] } 36... Kxf5 { [%clk 0:03:06.6] } 37. Kb6 { [%clk 0:16:24.6] } 37... Kxf4 { [%clk 0:03:02.2] } 38. c5 { [%clk 0:16:21.5] } 38... g6 { [%clk 0:02:59] } 39. Kc7 { [%clk 0:16:02.8] } 39... g5 { [%clk 0:02:36.6] } 40. Kxb7 { [%clk 0:15:58.7] } 40... h5 { [%clk 0:02:21.7] } 41. c6 { [%clk 0:15:55.5] } 41... g4 { [%clk 0:02:19.4] } 42. hxg4 { [%clk 0:15:47.3] } 42... hxg4 { [%clk 0:02:18.3] } 43. c7 { [%clk 0:15:46.6] } 43... g3 { [%clk 0:02:17.8] } 44. c8=Q { [%clk 0:15:45.8] } 44... g2 { [%clk 0:02:11.1] } 45. Qc5 { [%clk 0:15:41.6] } 45... Kf3 { [%clk 0:02:01.1] } 46. Qg1 { [%clk 0:15:35] } 46... a5 { [%clk 0:01:54.9] } 47. Ka6 { [%clk 0:15:30] } 47... Kg3 { [%clk 0:01:49.8] } 48. Kxa5 { [%clk 0:15:29.9] } 1-0

[Event "Live Chess"]
[Site "Chess.com"]
[Date "2021.02.28"]
[Round "-"]
[White "Craigmile, Neil"]
[Black "MacMillan, Malcolm"]
[Result "1-0"]
[BlackElo "1195"]
[CurrentPosition "8/8/8/7k/8/7R/5KQ1/8 b - -"]
[ECO "B01"]
[ECOUrl "https://www.chess.com/openings/Scandinavian-Defense-Mieses-Kotrc-Main-Line"]
[EndDate "2021.02.28"]
[EndTime "14:42:08"]
[Link "https://www.chess.com/live/game/8259829371"]
[StartTime "14:00:04"]
[Termination "Aberloon won by checkmate"]
[TimeControl "1500+10"]
[Timezone "UTC"]
[UTCDate "2021.02.28"]
[UTCTime "14:00:04"]
[WhiteElo "1200"]

1. e4 { [%clk 0:25:04.7] } 1... d5 { [%clk 0:25:06.2] } 2. exd5 { [%clk 0:25:10.6] } 2... Qxd5 { [%clk 0:25:13] } 3. Nc3 { [%clk 0:25:18] } 3... Qa5 { [%clk 0:25:19.5] } 4. Bc4 { [%clk 0:24:21.6] } 4... c6 { [%clk 0:25:20.6] } 5. a3 { [%clk 0:24:20.4] } 5... e6 { [%clk 0:25:24] } 6. Nf3 { [%clk 0:23:52.3] } 6... Nf6 { [%clk 0:25:29.3] } 7. d3 { [%clk 0:23:40.8] } 7... Nbd7 { [%clk 0:25:09.3] } 8. Bd2 { [%clk 0:23:28.4] } 8... Qc7 { [%clk 0:25:11.8] } 9. O-O { [%clk 0:22:12.9] } 9... a5 { [%clk 0:25:16.3] } 10. Re1 { [%clk 0:20:58.6] } 10... b5 { [%clk 0:24:30.1] } 11. Ba2 { [%clk 0:20:54.1] } 11... Be7 { [%clk 0:24:14.9] } 12. Qc1 { [%clk 0:19:21] } 12... O-O { [%clk 0:23:08.6] } 13. Ne2 { [%clk 0:19:22.5] } 13... e5 { [%clk 0:23:10.5] } 14. Ng3 { [%clk 0:19:18.6] } 14... Nd5 { [%clk 0:23:07.8] } 15. c4 { [%clk 0:17:57.6] } 15... bxc4 { [%clk 0:22:45] } 16. Bxc4 { [%clk 0:17:59.3] } 16... Bd6 { [%clk 0:22:01.8] } 17. Bxd5 { [%clk 0:17:59.5] } 17... Nc5 { [%clk 0:21:47] } 18. Be4 { [%clk 0:17:43.1] } 18... Nb3 { [%clk 0:21:50.4] } 19. Qxc6 { [%clk 0:17:35.6] } 19... Nxa1 { [%clk 0:21:25] } 20. Qxa8 { [%clk 0:17:07.3] } 20... Nb3 { [%clk 0:19:29.6] } 21. Bxh7+ { [%clk 0:16:38.9] } 21... Kxh7 { [%clk 0:19:17] } 22. Qe4+ { [%clk 0:16:23.2] } 22... g6 { [%clk 0:19:11.1] } 23. Qh4+ { [%clk 0:15:52.7] } 23... Kg7 { [%clk 0:19:03.7] } 24. Bh6+ { [%clk 0:14:41.4] } 24... Kg8 { [%clk 0:19:02.1] } 25. Bxf8 { [%clk 0:14:34] } 25... Bxf8 { [%clk 0:19:02.3] } 26. Ng5 { [%clk 0:14:34.4] } 26... f6 { [%clk 0:18:48.7] } 27. N5e4 { [%clk 0:14:04.4] } 27... Bg7 { [%clk 0:16:35.6] } 28. Nxf6+ { [%clk 0:13:45] } 28... Bxf6 { [%clk 0:16:30.6] } 29. Qxf6 { [%clk 0:13:51.2] } 29... Nd4 { [%clk 0:14:59.5] } 30. Qxg6+ { [%clk 0:13:03.2] } 30... Qg7 { [%clk 0:14:57.9] } 31. Qxg7+ { [%clk 0:12:39.2] } 31... Kxg7 { [%clk 0:15:03.5] } 32. Rxe5 { [%clk 0:12:36.7] } 32... Ba6 { [%clk 0:15:04.6] } 33. Nf5+ { [%clk 0:12:21.9] } 33... Nxf5 { [%clk 0:15:08.3] } 34. Rxf5 { [%clk 0:12:27.1] } 34... Bxd3 { [%clk 0:15:15] } 35. Rxa5 { [%clk 0:12:34.3] } 35... Kf6 { [%clk 0:15:15.9] } 36. b4 { [%clk 0:12:21.1] } 36... Ke6 { [%clk 0:15:09.1] } 37. b5 { [%clk 0:12:25.4] } 37... Kd7 { [%clk 0:15:08.8] } 38. b6 { [%clk 0:12:26.3] } 38... Be4 { [%clk 0:15:14] } 39. Re5 { [%clk 0:12:29.8] } 39... Bb7 { [%clk 0:15:18.2] } 40. a4 { [%clk 0:12:29.5] } 40... Kc6 { [%clk 0:15:22.5] } 41. a5 { [%clk 0:12:27.1] } 41... Ba6 { [%clk 0:15:15.3] } 42. h4 { [%clk 0:12:33.6] } 42... Kb7 { [%clk 0:15:10] } 43. h5 { [%clk 0:12:38.2] } 43... Bd3 { [%clk 0:15:11.2] } 44. h6 { [%clk 0:12:42.5] } 44... Ka6 { [%clk 0:15:16] } 45. Rh5 { [%clk 0:12:44.4] } 45... Bg6 { [%clk 0:15:10.4] } 46. Rg5 { [%clk 0:12:42.2] } 46... Bd3 { [%clk 0:15:10.3] } 47. Rg7 { [%clk 0:12:43.4] } 47... Kxa5 { [%clk 0:15:11.7] } 48. h7 { [%clk 0:12:52] } 48... Bxh7 { [%clk 0:15:12.9] } 49. Rxh7 { [%clk 0:12:58.8] } 49... Kxb6 { [%clk 0:15:19.5] } 50. f4 { [%clk 0:13:01.7] } 50... Kc6 { [%clk 0:15:26.4] } 51. Rh3 { [%clk 0:13:08.2] } 51... Kd5 { [%clk 0:15:21.5] } 52. f5 { [%clk 0:13:15.8] } 52... Ke5 { [%clk 0:15:26.2] } 53. Rf3 { [%clk 0:13:23.3] } 53... Kf6 { [%clk 0:15:31.6] } 54. g4 { [%clk 0:13:30.7] } 54... Kf7 { [%clk 0:15:37] } 55. Kg2 { [%clk 0:13:37.4] } 55... Kf6 { [%clk 0:15:43.3] } 56. Kg3 { [%clk 0:13:42.4] } 56... Kf7 { [%clk 0:15:46.8] } 57. f6 { [%clk 0:13:49.6] } 57... Kf8 { [%clk 0:15:51.5] } 58. f7 { [%clk 0:13:55.1] } 58... Kg7 { [%clk 0:15:48.3] } 59. f8=Q+ { [%clk 0:13:59.3] } 59... Kg6 { [%clk 0:15:55.1] } 60. Qg8+ { [%clk 0:13:56.7] } 60... Kh6 { [%clk 0:15:57.4] } 61. g5+ { [%clk 0:13:54.1] } 61... Kh5 { [%clk 0:15:54] } 62. Qh8+ { [%clk 0:13:58.3] } 62... Kxg5 { [%clk 0:16:00] } 63. Kf2 { [%clk 0:14:00.8] } 63... Kg4 { [%clk 0:16:01.1] } 64. Qg8+ { [%clk 0:14:02.7] } 64... Kh4 { [%clk 0:16:06.2] } 65. Qg2 { [%clk 0:14:01.5] } 65... Kh5 { [%clk 0:16:09.7] } 66. Rh3# { [%clk 0:14:09.2] } 1-0

[Event "Live Chess"]
[Site "Chess.com"]
[Date "2021.02.28"]
[Round "-"]
[White "O`Donnell, Matthew"]
[Black "Vijayakumar, Rishi"]
[Result "1-0"]
[BlackElo "1630"]
[CurrentPosition "R3k2r/8/6K1/6P1/5P2/8/8/8 b - -"]
[ECO "A45"]
[ECOUrl "https://www.chess.com/openings/Indian-Game"]
[EndDate "2021.02.28"]
[EndTime "14:45:29"]
[Link "https://www.chess.com/live/game/8259846713"]
[StartTime "14:00:29"]
[Termination "msod92 won by resignation"]
[TimeControl "1500+10"]
[Timezone "UTC"]
[UTCDate "2021.02.28"]
[UTCTime "14:00:29"]
[WhiteElo "1861"]

1. d4 { [%clk 0:25:10] } 1... Nf6 { [%clk 0:25:10] } 2. Bf4 { [%clk 0:25:16.5] } 2... e6 { [%clk 0:25:15.3] } 3. Nf3 { [%clk 0:25:24.6] } 3... c5 { [%clk 0:25:21.5] } 4. e3 { [%clk 0:25:33.5] } 4... Qb6 { [%clk 0:25:27.6] } 5. Nc3 { [%clk 0:25:01.6] } 5... a6 { [%clk 0:24:49.4] } 6. dxc5 { [%clk 0:24:36.9] } 6... Bxc5 { [%clk 0:24:46.6] } 7. Na4 { [%clk 0:24:21.7] } 7... Qa5+ { [%clk 0:24:53.1] } 8. c3 { [%clk 0:24:30.8] } 8... Be7 { [%clk 0:24:58.2] } 9. b4 { [%clk 0:24:39.8] } 9... Qd8 { [%clk 0:25:00.4] } 10. Bd3 { [%clk 0:24:45.7] } 10... Nc6 { [%clk 0:25:07.8] } 11. O-O { [%clk 0:24:43.6] } 11... O-O { [%clk 0:25:06.3] } 12. Qc2 { [%clk 0:24:20.7] } 12... d6 { [%clk 0:25:04.1] } 13. Rfd1 { [%clk 0:24:02.3] } 13... Qc7 { [%clk 0:24:43.8] } 14. Rac1 { [%clk 0:23:30] } 14... e5 { [%clk 0:24:46.6] } 15. Bg5 { [%clk 0:23:35] } 15... h6 { [%clk 0:24:40.1] } 16. Bxf6 { [%clk 0:23:40.5] } 16... Bxf6 { [%clk 0:24:48.3] } 17. a3 { [%clk 0:23:27.5] } 17... Re8 { [%clk 0:22:27.8] } 18. c4 { [%clk 0:22:01.6] } 18... Be6 { [%clk 0:21:37.6] } 19. Nc3 { [%clk 0:21:38.5] } 19... Ne7 { [%clk 0:21:03.6] } 20. Ne4 { [%clk 0:21:22.3] } 20... Rad8 { [%clk 0:20:19.7] } 21. Nxf6+ { [%clk 0:21:16.9] } 21... gxf6 { [%clk 0:20:24.6] } 22. Nh4 { [%clk 0:21:00.5] } 22... Kh8 { [%clk 0:19:58.5] } 23. Nf5 { [%clk 0:21:01.3] } 23... Nxf5 { [%clk 0:19:51] } 24. Bxf5 { [%clk 0:21:11.2] } 24... Rg8 { [%clk 0:19:58.7] } 25. Bxe6 { [%clk 0:20:23.6] } 25... fxe6 { [%clk 0:20:03.4] } 26. Qe4 { [%clk 0:19:40.3] } 26... Qh7 { [%clk 0:19:23.1] } 27. Qh4 { [%clk 0:17:36.6] } 27... Qg6 { [%clk 0:19:26.3] } 28. g3 { [%clk 0:17:38.1] } 28... Kh7 { [%clk 0:19:11.4] } 29. c5 { [%clk 0:16:37.4] } 29... dxc5 { [%clk 0:17:35.1] } 30. bxc5 { [%clk 0:16:44.3] } 30... Qf5 { [%clk 0:15:05.3] } 31. Rd6 { [%clk 0:15:52.7] } 31... Rc8 { [%clk 0:12:09.9] } 32. e4 { [%clk 0:14:16.7] } 32... Qg5 { [%clk 0:11:58.1] } 33. Qxg5 { [%clk 0:14:20.9] } 33... hxg5 { [%clk 0:12:05.5] } 34. Rxe6 { [%clk 0:14:29.7] } 34... Kg6 { [%clk 0:12:01.4] } 35. c6 { [%clk 0:13:00.8] } 35... Rg7 { [%clk 0:11:33.3] } 36. Kg2 { [%clk 0:12:37.7] } 36... b5 { [%clk 0:10:22.1] } 37. Rd1 { [%clk 0:12:09.6] } 37... Rgc7 { [%clk 0:10:18.9] } 38. Rdd6 { [%clk 0:12:15.5] } 38... a5 { [%clk 0:10:26.5] } 39. Rxf6+ { [%clk 0:12:22.6] } 39... Kg7 { [%clk 0:10:31] } 40. Rg6+ { [%clk 0:11:32.3] } 40... Kf7 { [%clk 0:10:28] } 41. Rxg5 { [%clk 0:11:37.3] } 41... Rxc6 { [%clk 0:10:35.5] } 42. Rxc6 { [%clk 0:11:45.7] } 42... Rxc6 { [%clk 0:10:42.3] } 43. Rxe5 { [%clk 0:11:55.2] } 43... Rb6 { [%clk 0:10:44.2] } 44. Rd5 { [%clk 0:11:56.6] } 44... a4 { [%clk 0:10:39.1] } 45. h4 { [%clk 0:12:00.5] } 45... b4 { [%clk 0:10:01.8] } 46. axb4 { [%clk 0:12:07.5] } 46... Rxb4 { [%clk 0:10:07.5] } 47. Ra5 { [%clk 0:12:09.5] } 47... Rxe4 { [%clk 0:10:13.3] } 48. f3 { [%clk 0:12:15] } 48... Re2+ { [%clk 0:10:21.6] } 49. Kh3 { [%clk 0:12:24.3] } 49... Ra2 { [%clk 0:10:30] } 50. Kg4 { [%clk 0:12:33.3] } 50... a3 { [%clk 0:10:38] } 51. f4 { [%clk 0:12:42.6] } 51... Ra1 { [%clk 0:10:42.3] } 52. Kf5 { [%clk 0:12:51.1] } 52... a2 { [%clk 0:10:50.1] } 53. g4 { [%clk 0:13:00] } 53... Kg7 { [%clk 0:10:53.1] } 54. g5 { [%clk 0:13:06.4] } 54... Kf7 { [%clk 0:10:58.3] } 55. Ra7+ { [%clk 0:13:15.2] } 55... Ke8 { [%clk 0:11:02.1] } 56. h5 { [%clk 0:13:23.1] } 56... Rh1 { [%clk 0:11:05.9] } 57. Rxa2 { [%clk 0:13:31.1] } 57... Rxh5 { [%clk 0:11:14.6] } 58. Kg6 { [%clk 0:13:36.7] } 58... Rh8 { [%clk 0:11:21] } 59. Ra8+ { [%clk 0:13:43] } 1-0

[Event "Live Chess"]
[Site "Chess.com"]
[Date "2021.02.28"]
[Round "-"]
[White "Flood, Raymond"]
[Black "Keenan, Alex"]
[Result "1/2-1/2"]
[BlackElo "1806"]
[CurrentPosition "8/4kp2/4p2p/1p2P3/1P3r2/2PK1P2/8/7R w - -"]
[ECO "A45"]
[ECOUrl "https://www.chess.com/openings/Indian-Game"]
[EndDate "2021.02.28"]
[EndTime "14:28:56"]
[Link "https://www.chess.com/live/game/8259850397"]
[StartTime "14:00:51"]
[Termination "Game drawn by repetition"]
[TimeControl "1500+10"]
[Timezone "UTC"]
[UTCDate "2021.02.28"]
[UTCTime "14:00:51"]
[WhiteElo "1605"]

1. d4 { [%clk 0:25:10] } 1... Nf6 { [%clk 0:25:10] } 2. Bf4 { [%clk 0:25:07.3] } 2... d5 { [%clk 0:25:00.6] } 3. e3 { [%clk 0:25:12.2] } 3... c5 { [%clk 0:24:55.4] } 4. c3 { [%clk 0:24:53.5] } 4... Nc6 { [%clk 0:24:56.9] } 5. Bd3 { [%clk 0:24:00.1] } 5... e6 { [%clk 0:24:54.6] } 6. Nf3 { [%clk 0:23:52.3] } 6... Bd6 { [%clk 0:24:55.6] } 7. Bg3 { [%clk 0:23:57.8] } 7... Bxg3 { [%clk 0:25:00.9] } 8. hxg3 { [%clk 0:24:04.2] } 8... cxd4 { [%clk 0:25:09.6] } 9. exd4 { [%clk 0:24:07.4] } 9... Qb6 { [%clk 0:25:01.1] } 10. Qc2 { [%clk 0:24:04] } 10... h6 { [%clk 0:24:59.1] } 11. Nbd2 { [%clk 0:23:35.2] } 11... Bd7 { [%clk 0:25:04.2] } 12. Nb3 { [%clk 0:20:52.7] } 12... Na5 { [%clk 0:24:54.1] } 13. Nc5 { [%clk 0:20:42.1] } 13... Bb5 { [%clk 0:24:32.2] } 14. Bxb5+ { [%clk 0:18:08.6] } 14... Qxb5 { [%clk 0:24:36.1] } 15. Ne5 { [%clk 0:18:04.8] } 15... Ne4 { [%clk 0:23:27.7] } 16. Nxe4 { [%clk 0:17:53.8] } 16... dxe4 { [%clk 0:23:35.6] } 17. b4 { [%clk 0:17:27.3] } 17... Nc4 { [%clk 0:23:14.3] } 18. Qxe4 { [%clk 0:16:23.3] } 18... Nxe5 { [%clk 0:23:03.9] } 19. Qxe5 { [%clk 0:16:16.7] } 19... Qxe5+ { [%clk 0:22:45.2] } 20. dxe5 { [%clk 0:16:22] } 20... Rc8 { [%clk 0:22:50.9] } 21. Rc1 { [%clk 0:16:23.2] } 21... Rc4 { [%clk 0:22:57.1] } 22. f4 { [%clk 0:16:23.2] } 22... Ke7 { [%clk 0:22:59.5] } 23. Ke2 { [%clk 0:15:41.6] } 23... Rhc8 { [%clk 0:23:01.1] } 24. Kd3 { [%clk 0:15:45.6] } 24... b5 { [%clk 0:23:04] } 25. Rhd1 { [%clk 0:15:41.4] } 25... g5 { [%clk 0:22:29] } 26. Rf1 { [%clk 0:14:59.8] } 26... gxf4 { [%clk 0:22:19.4] } 27. gxf4 { [%clk 0:15:03.7] } 27... Rg8 { [%clk 0:22:22.9] } 28. Rf2 { [%clk 0:14:55.6] } 28... Rg4 { [%clk 0:21:48.7] } 29. a4 { [%clk 0:13:08] } 29... a6 { [%clk 0:21:51.9] } 30. axb5 { [%clk 0:13:11.8] } 30... axb5 { [%clk 0:21:56.5] } 31. Rh1 { [%clk 0:12:29.1] } 31... Rg3+ { [%clk 0:22:00.6] } 32. Rf3 { [%clk 0:12:31.4] } 32... Rxf3+ { [%clk 0:21:59.4] } 33. gxf3 { [%clk 0:12:34.3] } 33... Rxf4 { [%clk 0:22:07] } 34. Ke3 { [%clk 0:12:39.8] } 34... Rc4 { [%clk 0:22:13] } 35. Kd3 { [%clk 0:12:35] } 35... Rf4 { [%clk 0:22:20.8] } 36. Ke3 { [%clk 0:12:39.5] } 36... Rc4 { [%clk 0:22:01.7] } 37. Kd3 { [%clk 0:12:46.2] } 37... Rf4 { [%clk 0:21:47.7] } 1/2-1/2